fUSD/lending_fUSD_20250911
["ID","MTS","AMOUNT","RATE_DAILY","PERIOD"]
[384860467,1757597432734,-285.0797,0.00027287,2]
[384860469,1757597432743,-2153.1605942,0.00027287,2]
[384860471,1757597432755,-414.53258369,0.00027287,2]
[384860473,1757597432764,-1813.73009062,0.00027297,2]
[384860476,1757597432788,-2426.60648129,0.00027297,2]
[384860483,1757597432845,-11010.39492809,0.00027297,2]
[384860485,1757597432856,-4284.15115691,0.00027297,2]
[384860626,1757597438226,-715.84884309,0.00027297,2]
[384860627,1757597438235,-185.73529384,0.000273,2]
[384860628,1757597438244,-1000.0,0.00027335,2]
[384860629,1757597438253,-9358.8715677,0.00027347,2]
[384860630,1757597438264,-500.0,0.00027373,2]
[384860631,1757597438273,-500.0,0.00027373,2]
[384860632,1757597438282,-291.54175749,0.00027373,2]
[384860634,1757597438291,-253.84,0.00027379,2]
[384860636,1757597438301,-2153.16059412,0.00027379,2]
[384860638,1757597438310,-414.53258369,0.00027379,2]
[384860640,1757597438319,-231.3767446,0.00027384,7]
[384860642,1757597438328,-192.45155537,0.00027386,2]
[384860644,1757597438338,-500.0,0.00027386,2]
[384860646,1757597438347,-500.0,0.00027386,2]
[384860648,1757597438356,-500.0,0.00027386,2]
[384860650,1757597438365,-276.08335809,0.00027386,2]
[384860652,1757597438374,-278.02603331,0.00027387,2]
[384860828,1757597440299,-1730.60397309,0.00027387,2]
[384860829,1757597440311,-15165.45393427,0.00027387,2]
[384860844,1757597440626,-0.01566447,0.00027387,2]
[384861177,1757597443876,-1200.0,0.00026671,2]
[384861401,1757597445946,-546.006,0.00026671,2]
[384861403,1757597445958,-2996.91604454,0.00026671,2]
[384861406,1757597445967,-602.94506114,0.00026671,2]
[384861408,1757597445976,-14728.01261136,0.00026786,2]
[384861412,1757597446006,-813.53866187,0.00026786,2]
[384861414,1757597446016,-1225.31611131,0.00026837,2]
[384861445,1757597446289,-14316.23516192,0.00026837,2]
[384861447,1757597446299,-15541.55127323,0.00026888,2]
[384861449,1757597446308,-15541.55127323,0.00026897,2]
[384861451,1757597446318,-15541.55127323,0.00026933,2]
[384861453,1757597446327,-15541.55127323,0.00026979,2]
[384861455,1757597446337,-15541.55127323,0.00026995,2]
[384861457,1757597446347,-294037.03853986,0.00027387,2]
[384861459,1757597446356,-55018.98935474,0.00027387,2]
[384861529,1757597857064,155.6,0.00016438,2]
[384861531,1757597957715,368.0,0.00019572,2]
[384861534,1757598242467,162.52,0.00012963,2]
[384861536,1757598403969,-234.59,0.00021247,2]
[384861537,1757598403990,-307.16438372,0.00023103,2]
[384861539,1757598438459,3326.7410404,0.0003,120]
[384861540,1757598455855,320.36,0.0002582,120]
[384861541,1757598484471,168.52,0.00025866,120]
[384861544,1757598632255,-989.52679911,0.00023,2]
[384861545,1757598632265,-712.15171879,0.00023103,2]
[384861546,1757598632356,-711.4920232,0.00023103,2]
[384861547,1757598632365,-178.68,0.00024658,2]
[384861548,1757598632375,-257.91778498,0.00024885,2]
[384861549,1757598632384,-4225.13007754,0.000249,2]
[384861550,1757598632394,-1200.0,0.00024999,2]
[384861551,1757598632403,-1505.6739952,0.00025,14]
[384861552,1757598632412,-173.0,0.00025,7]
[384861553,1757598632422,-155.6,0.00025049,2]
[384861554,1757598632431,-646.05404048,0.00025359,2]
[384861555,1757598632441,-300.0,0.00025852,2]
[384861556,1757598632450,-300.0,0.00025852,2]
[384861557,1757598632459,-1000.0,0.00025853,2]
[384861558,1757598632468,-375.0,0.000259,2]
[384861559,1757598632478,-666.0,0.00025941,3]
[384861560,1757598632487,-150.0,0.00025965,7]
[384861561,1757598632496,-1024.96,0.00026,2]
[384861562,1757598632505,-666.0195541,0.0002602,2]
[384861563,1757598632514,-200.0,0.000261,7]
[384861564,1757598632525,-267.46074303,0.00026254,2]
[384861565,1757598632535,-273.1,0.00026304,2]
[384861566,1757598632543,-340.0,0.00026373,2]
[384861567,1757598632553,-263.01,0.00026424,2]
[384861568,1757598632564,-1741.84,0.00026438,7]
[384861569,1757598632573,-3139.32682062,0.00026442,2]
[384861570,1757598632582,-341.0,0.00026465,7]
[384861571,1757598632591,-275.70328962,0.00026521,7]
[384861572,1757598632600,-340.0,0.00026534,7]
[384861573,1757598632610,-732.37389763,0.00026565,2]
[384861574,1757598632619,-340.0,0.00026569,7]
[384861575,1757598632628,-1094.0,0.00026569,2]
[384861576,1757598632638,-1300.0,0.000266,9]
[384861577,1757598632647,-1741.84,0.0002663,7]
[384861578,1757598632656,-258.93,0.00026678,2]
[384861579,1757598632665,-410.01,0.00026678,2]
[384861580,1757598632675,-166.67,0.00026678,2]
[384861581,1757598632684,-2600.0,0.000267,9]
[384861582,1757598632694,-166.68,0.00026744,2]
[384861583,1757598632703,-2133.83586083,0.00026754,2]
[384861584,1757598632713,-1746.65255419,0.00026786,2]
[384861585,1757598632722,-3564.31122094,0.00026792,2]
[384861586,1757598632731,-160.0,0.00026793,2]
[384861587,1757598632739,-160.0,0.00026793,2]
[384861588,1757598632748,-515.37529716,0.00026793,2]
[384861589,1757598632757,-160.0,0.00026793,2]
[384861590,1757598632989,-212.89373682,0.00026793,2]
[384861591,1757598633066,-3564.31122094,0.00026794,2]
[384861592,1757598633076,-3900.0,0.000268,9]
[384861593,1757598633086,-3564.31122094,0.00026804,2]
[384861594,1757598633096,-688.17000535,0.0002681,2]
[384861595,1757598633106,-1741.84,0.00026821,7]
[384861596,1757598633115,-1000.0,0.00026822,2]
[384861597,1757598633124,-3564.31122094,0.00026823,2]
[384861598,1757598633133,-2255.91638829,0.0002683,2]
[384861599,1757598633146,-1308.39483265,0.0002683,2]
[384861600,1757598633156,-1746.65255419,0.00026832,2]
[384861601,1757598633166,-11904.10339052,0.00026832,2]
[384861602,1757598633180,-731.24061585,0.00026832,2]
[384861603,1757598633284,-2502.91056009,0.00026832,2]
[384861604,1757598633295,-15564.78373317,0.00026832,2]
[384861605,1757598633306,-30703.03829963,0.00026833,2]
[384861606,1757598633316,-688.17000535,0.00026853,2]
[384861607,1757598633325,-30703.03829963,0.00026862,2]
[384861608,1757598633335,-30703.03829963,0.00026863,2]
[384861609,1757598633344,-688.17000535,0.00026865,2]
[384861610,1757598633354,-1746.65255419,0.0002687,2]
[384861611,1757598633363,-3310.18872696,0.00026879,2]
[384861612,1757598633375,-27392.84957267,0.00026879,2]
[384861613,1757598633385,-1746.65255419,0.00026898,2]
[384861614,1757598633395,-1746.65255419,0.00026899,2]
[384861615,1757598633404,-5200.0,0.000269,9]
[384861616,1757598633414,-688.17000535,0.00026911,2]
[384861617,1757598633423,-1746.65255419,0.00026913,2]
[384861618,1757598633433,-3564.31122094,0.00026914,2]
[384861619,1757598633442,-688.17000535,0.00026915,2]
[384861620,1757598633451,-688.17000535,0.00026927,2]
[384861621,1757598633460,-688.17000535,0.00026935,2]
[384861622,1757598633469,-30703.03829963,0.00026938,2]
[384861623,1757598633476,-3564.31122094,0.00026954,2]
[384861624,1757598633483,-3501.0,0.00026971,7]
[384861625,1757598633490,-515.37529716,0.00026971,7]
[384861626,1757598633496,-160.0,0.00026971,7]
[384861627,1757598633505,-212.89373682,0.00026971,7]
[384861628,1757598633515,-1746.65255419,0.00026987,2]
[384861629,1757598633524,-30703.03829963,0.00026994,2]
[384861630,1757598633534,-340.0,0.00027005,7]
[384861631,1757598633544,-340.0,0.00027006,2]
[384861632,1757598633554,-1741.84,0.00027013,7]
[384861633,1757598633567,-500.0,0.0002702,2]
[384861634,1757598633577,-367.0,0.0002708,2]
[384861635,1757598633588,-471.64755421,0.00027097,2]
[384861636,1757598633599,-200.0,0.000271,7]
[384861637,1757598633609,-376.29985897,0.00027105,2]
[384861638,1757598637307,-164.50328476,0.00027105,2]
[384861639,1757598637317,-355.38918045,0.0002712,2]
[384861640,1757598637328,-1075.43,0.0002712,2]
[384861641,1757598637340,-686.36343726,0.0002712,2]
[384861642,1757598637351,-1018.15223715,0.0002712,2]
[384861644,1757598637370,-3277.29660856,0.0002712,2]
[384861646,1757598637381,-718.78087629,0.0002712,2]
[384861648,1757598637392,-265.030996,0.0002712,2]
[384861660,1757598638185,-1459.50309689,0.0002712,2]
[384861661,1757598638361,-542.46609112,0.0002712,2]
[384861662,1757598638472,-2455.06197969,0.0002712,2]
[384861671,1757598640237,-15033.19104797,0.0002712,2]
[384861672,1757598640487,-318.25749749,0.0002712,2]
[384861687,1757598643568,-25353.21151514,0.0002712,2]
[384861688,1757598643579,-516.0,0.00027137,2]
[384861689,1757598643588,-2189.4646574,0.00027193,2]
[384861690,1757598643598,-1741.84,0.00027205,7]
[384861691,1757598643607,-1680.0,0.00027205,2]
[384861692,1757598643616,-500.0,0.00027257,2]
[384861693,1757598643626,-500.0,0.00027257,2]
[384861694,1757598643635,-500.0,0.00027257,2]
[384861695,1757598643644,-306.60108493,0.00027257,2]
[384861696,1757598643653,-600.0,0.00027257,2]
[384861698,1757598643663,-500.0,0.00027257,2]
[384861700,1757598643672,-500.0,0.00027257,2]
[384861701,1757598643682,-500.0,0.00027257,2]
[384861702,1757598643691,-200.0,0.00027257,2]
[384861703,1757598643701,-405.7835,0.00027267,2]
[384861704,1757598643710,-2554.1972903,0.00027268,2]
[384861705,1757598643720,-5328.065615,0.00027273,2]
[384861706,1757598643731,-197.34259534,0.00027276,2]
[384861707,1757598643741,-276.9306,0.00027277,2]
[384861708,1757598643751,-7147.69326208,0.00027277,2]
[384861709,1757598643760,-500.0,0.00027277,2]
[384861710,1757598643771,-500.0,0.00027277,2]
[384861711,1757598643780,-150.0,0.00027277,2]
[384861712,1757598643789,-150.0,0.00027277,2]
[384861713,1757598643798,-500.0,0.00027277,2]
[384861714,1757598643808,-500.0,0.00027277,2]
[384861715,1757598643819,-150.0,0.00027277,2]
[384861717,1757598643829,-500.0,0.00027277,2]
[384861719,1757598643839,-150.0,0.00027277,2]
[384861720,1757598643849,-500.0,0.00027277,2]
[384861721,1757598643859,-150.0,0.00027277,2]
[384861722,1757598643868,-150.0,0.00027277,2]
[384861723,1757598643877,-500.0,0.00027277,2]
[384861724,1757598643887,-150.0,0.00027277,2]
[384861725,1757598643896,-500.0,0.00027277,2]
[384861726,1757598643906,-150.0,0.00027277,2]
[384861727,1757598643916,-500.0,0.00027277,2]
[384861728,1757598643925,-500.0,0.00027277,2]
[384861729,1757598643935,-150.0,0.00027277,2]
[384861730,1757598643944,-150.0,0.00027277,2]
[384861731,1757598643953,-150.0,0.00027277,2]
[384861732,1757598643963,-2287.8835,0.00027287,2]
[384861733,1757598643972,-5000.0,0.00027287,2]
[384861734,1757598643982,-500.0,0.00027293,2]
[384861735,1757598643991,-152.55425204,0.00027293,2]
[384861736,1757598644002,-150.0,0.00027293,2]
[384861737,1757598644011,-150.0,0.00027293,2]
[384861738,1757598644021,-150.0,0.00027293,2]
[384861739,1757598644032,-150.0,0.00027293,2]
[384861740,1757598644041,-500.0,0.00027293,2]
[384861741,1757598644051,-500.0,0.00027293,2]
[384861742,1757598644061,-500.0,0.00027293,2]
[384861743,1757598644071,-150.0,0.00027293,2]
[384861744,1757598644080,-150.0,0.00027293,2]
[384861745,1757598644090,-500.0,0.00027293,2]
[384861746,1757598644099,-150.0,0.00027293,2]
[384861747,1757598644108,-500.0,0.00027293,2]
[384861748,1757598644118,-539.28224945,0.00027293,2]
[384861749,1757598644190,-343.52755888,0.00027293,2]
[384861751,1757598646390,-533.19019167,0.00027293,2]
[384861752,1757598646400,-500.0,0.00027293,2]
[384861753,1757598646410,-500.0,0.00027293,2]
[384861754,1757598646419,-150.0,0.00027293,2]
[384861755,1757598646429,-150.0,0.00027293,2]
[384861756,1757598646439,-150.0,0.00027293,2]
[384861757,1757598646449,-500.0,0.00027293,2]
[384861758,1757598646459,-500.0,0.00027293,2]
[384861759,1757598646468,-500.0,0.00027293,2]
[384861760,1757598646478,-150.0,0.00027293,2]
[384861761,1757598646487,-403.65850391,0.00027293,2]
[384861762,1757598646497,-403.65850389,0.00027295,2]
[384861763,1757598646507,-320.34474042,0.00027297,2]
[384861764,1757598646517,-355.99264654,0.00027297,2]
[384861765,1757598646526,-403.65850389,0.00027297,2]
[384861766,1757598646536,-5729.80438727,0.000273,2]
[384861767,1757598646545,-1013.0,0.000273,2]
[384861768,1757598646555,-2676.66479527,0.000273,2]
[384861769,1757598646566,-277.14,0.00027334,2]
[384861770,1757598646578,-7147.69326205,0.0002734,2]
[384861771,1757598646587,-150.0,0.00027359,2]
[384861772,1757598646597,-291.04549455,0.00027361,2]
[384861773,1757598646607,-370.94033619,0.00027363,2]
[384861774,1757598646617,-450.83517784,0.00027365,2]
[384861775,1757598646627,-28235.1614792,0.00027367,2]
[384861776,1757598646637,-530.73001948,0.00027367,2]
[384861777,1757598646646,-610.62486112,0.00027369,2]
[384861778,1757598646656,-25446.0,0.0002737,2]
[384861779,1757598646666,-690.51970276,0.00027371,2]
[384861780,1757598646675,-502.39342127,0.00027373,2]
[384861781,1757598646685,-501.33632888,0.00027373,2]
[384861782,1757598646694,-501.92667689,0.00027373,2]
[384861783,1757598646704,-501.08215854,0.00027373,2]
[384861784,1757598646714,-500.0,0.00027373,2]
[384861785,1757598646723,-502.11604635,0.00027373,2]
[384861786,1757598646732,-500.0,0.00027373,2]
[384861787,1757598646742,-500.0,0.00027373,2]
[384861788,1757598646751,-500.0,0.00027373,2]
[384861789,1757598646761,-206.74139808,0.00027373,2]
[384861790,1757598646770,-500.0,0.00027373,2]
[384861791,1757598646780,-503.93132093,0.00027373,2]
[384861792,1757598646789,-500.0,0.00027373,2]
[384861794,1757598646799,-501.05374812,0.00027373,2]
[384861796,1757598646808,-500.0,0.00027373,2]
[384861798,1757598646818,-506.3941062,0.00027373,2]
[384861800,1757598646828,-500.0,0.00027373,2]
[384861802,1757598646837,-770.4145444,0.00027373,2]
[384861804,1757598646847,-850.30938605,0.00027375,2]
[384861806,1757598646857,-540.80314373,0.00027376,2]
[384861808,1757598646867,-374.64734955,0.00027376,2]
[384861810,1757598646876,-201.93971182,0.00027376,2]
[384861812,1757598646885,-207.91858287,0.00027376,2]
[384861814,1757598646895,-6303.99852185,0.00027376,2]
[384861816,1757598646904,-28235.1614792,0.00027376,2]
[384861818,1757598646914,-500.0,0.00027377,5]
[384861821,1757598646923,-141175.807396,0.00027377,2]
[384861823,1757598646933,-63833.7618336,0.00027377,2]
[384861825,1757598646942,-930.20422769,0.00027377,2]
[384861827,1757598646952,-471.64,0.0002738,2]
[384861829,1757598646962,-151.0,0.00027383,7]
[384861831,1757598646971,-151.0,0.00027384,7]
[384861833,1757598646981,-14117.5807396,0.00027386,2]
[384861835,1757598646991,-1883.85,0.00027386,5]
[384861837,1757598647000,-1883.85,0.00027386,5]
[384861839,1757598647010,-1883.85,0.00027386,5]
[384861841,1757598647019,-1883.85,0.00027386,5]
[384861844,1757598647037,-1883.85,0.00027386,5]
[384861846,1757598647050,-1883.85,0.00027386,5]
[384861848,1757598647060,-1883.85,0.00027386,5]
[384861850,1757598647071,-1883.85,0.00027386,5]
[384861852,1757598647081,-1883.85,0.00027386,5]
[384861854,1757598647091,-1883.85,0.00027386,5]
[384861856,1757598647100,-1883.85,0.00027386,5]
[384861858,1757598647110,-1883.85,0.00027386,5]
[384861861,1757598647120,-1883.85,0.00027386,5]
[384861863,1757598647129,-1883.85,0.00027386,5]
[384861865,1757598647139,-1883.85,0.00027386,5]
[384861867,1757598647149,-1883.85,0.00027386,5]
[384861869,1757598647159,-1883.85,0.00027386,5]
[384861871,1757598647169,-1883.85,0.00027386,5]
[384861873,1757598647178,-1883.85,0.00027386,5]
[384861875,1757598647188,-1883.85,0.00027386,5]
[384861877,1757598647201,-1883.85,0.00027386,5]
[384861879,1757598647212,-1883.85,0.00027386,5]
[384861881,1757598647221,-1883.85,0.00027386,5]
[384861883,1757598647231,-1883.94129304,0.00027386,5]
[384861885,1757598647242,-5401.35895803,0.00027387,4]
[384861887,1757598647259,-7716.10284947,0.00027387,2]
[384861889,1757598647268,-12766.7523667,0.00027387,2]
[384861891,1757598647279,-96792.16198022,0.00027387,2]
[384861894,1757598647296,-502.47039619,0.00027387,2]
[384861897,1757598647317,-301.76068408,0.00027387,2]
[384861900,1757598647328,-915.49762066,0.00027387,2]
[384861902,1757598647340,-4240.45164835,0.00027387,2]
[384861904,1757598647363,-1529.02972686,0.00027387,2]
[384863883,1757598668813,2000.0,0.00027387,120]
[384863890,1757598669236,358.962,0.00027387,120]
[384863940,1757598729971,2000.0,0.00027387,120]
[384863941,1757598730634,1244.289,0.00027387,120]
[384863948,1757598790902,155.6,0.00016438,2]
[384863956,1757598930775,3428.45,0.0002,2]
[384864015,1757599483290,200.0,0.0002,2]
[384864031,1757599543604,200.0,0.0002,2]
[384864072,1757599761154,155.6,0.00016438,2]
[384864115,1757599831662,-415.62724929,0.00024648,2]
[384864116,1757599831895,-784.37275071,0.00024648,2]
[384864117,1757599831905,-300.0,0.00024648,2]
[384864118,1757599831915,-22044.78719073,0.00024649,2]
[384864119,1757599831926,-116120.00002891,0.00024649,2]
[384864120,1757599831949,-2186.56342063,0.00024649,2]
[384864121,1757599831973,-702.72429692,0.00024649,2]
[384864122,1757599831984,-477.31570308,0.00024649,2]
[384864123,1757599832029,-69862.83934514,0.00024649,2]
[384864134,1757599837385,-769.97541892,0.00024649,2]
[384864143,1757599837686,-59132.90236367,0.00024649,2]
[384864144,1757599837696,-600.0,0.00024738,2]
[384864145,1757599837706,-250.0,0.00024738,2]
[384864146,1757599837717,-257.91778498,0.00024738,2]
[384864147,1757599837726,-3000.0,0.00024738,2]
[384864148,1757599837735,-1000.0,0.00024738,2]
[384864149,1757599837745,-1000.0,0.00024738,2]
[384864150,1757599837754,-200.0,0.00024738,2]
[384864151,1757599837764,-1000.0,0.00024738,2]
[384864152,1757599837777,-1000.0,0.00024738,2]
[384864153,1757599837787,-1000.0,0.00024738,2]
[384864154,1757599837796,-322.6107,0.00024738,2]
[384864155,1757599837805,-493.24055252,0.00024866,2]
[384864156,1757599837815,-4180.13740307,0.000249,2]
[384864157,1757599837826,-600.0,0.00025286,2]
[384864158,1757599837835,-3279.18686469,0.00025538,2]
[384864159,1757599837845,-1000.0,0.00025768,2]
[384864160,1757599837854,-150.0,0.00025777,7]
[384864161,1757599837865,-273.1,0.00025844,2]
[384864162,1757599837874,-210.4,0.00025941,2]
[384864163,1757599837884,-160.75,0.00026028,2]
[384864165,1757599837894,-666.0,0.00026074,3]
[384864166,1757599837903,-205.381458,0.000261,2]
[384864167,1757599837912,-267.46074303,0.00026107,2]
[384864168,1757599837922,-3111.0,0.00026107,2]
[384864169,1757599837931,-888.0,0.00026262,7]
[384864170,1757599837941,-1378.96,0.00026438,7]
[384864171,1757599837950,-889.0,0.00026461,2]
[384864172,1757599837959,-888.0,0.00026502,2]
[384864173,1757599837968,-232.87029765,0.00026544,2]
[384864174,1757599837978,-1169.6469363,0.00026565,2]
[384864175,1757599837987,-600.0,0.000266,9]
[384864176,1757599837997,-1378.96,0.0002663,7]
[384864177,1757599838006,-888.0,0.00026673,2]
[384864178,1757599838016,-346.0,0.000267,2]
[384864179,1757599838026,-1300.0,0.000267,9]
[384864181,1757599838036,-3549.87211855,0.00026703,2]
[384864182,1757599838047,-443.296,0.00026703,2]
[384864244,1757599839673,-8424.41132005,0.00026703,2]
[384864245,1757599839683,-297.0,0.00026712,2]
[384864246,1757599839692,-12417.5794386,0.00026731,2]
[384864247,1757599839701,-1000.0,0.00026734,2]
[384864248,1757599839716,-897.0,0.00026741,2]
[384864249,1757599839726,-1176.0,0.00026741,2]
[384864250,1757599839735,-725.0,0.00026741,2]
[384864251,1757599839744,-4167.0,0.00026741,2]
[384864252,1757599839753,-6170.0,0.00026741,2]
[384864253,1757599839763,-20968.0,0.00026741,2]
[384864254,1757599839777,-1900.0,0.000268,9]
[384864255,1757599839786,-1378.96,0.00026821,7]
[384864256,1757599839795,-1013.47328961,0.00026833,2]
[384864257,1757599840034,-666.52671039,0.00026833,2]
[384864258,1757599840043,-2600.0,0.000269,9]
[384864259,1757599840053,-888.0,0.00026965,2]
[384864260,1757599840063,-274.31522961,0.00026989,2]
[384864261,1757599840076,-613.68477039,0.00026989,2]
[384864262,1757599840087,-160.0,0.00026991,2]
[384864263,1757599840096,-160.0,0.00026991,2]
[384864264,1757599840106,-515.37529716,0.00026991,2]
[384864265,1757599840115,-160.0,0.00026991,2]
[384864266,1757599840125,-212.89373682,0.00026991,2]
[384864267,1757599840134,-3799.44438748,0.00027,2]
[384864268,1757599840144,-1378.96,0.00027013,7]
[384864269,1757599840154,-336.92,0.00027097,2]
[384864270,1757599840163,-1000.0,0.000271,2]
[384864271,1757599840173,-7171.54171723,0.00027177,2]
[384864272,1757599840185,-5246.03772137,0.00027177,2]
[384864273,1757599840194,-6725.23561629,0.00027187,2]
[384864274,1757599840203,-1000.0,0.000272,2]
[384864275,1757599840213,-1378.96,0.00027205,7]
[384864276,1757599840223,-210.4,0.00027238,2]
[384864277,1757599840232,-336.96344394,0.0002726,2]
[384864278,1757599840244,-5327.56,0.0002726,2]
[384864279,1757599840256,-1060.71217235,0.0002726,2]
[384864280,1757599840266,-953.1308,0.00027287,2]
[384864281,1757599840276,-2439.07647181,0.00027287,2]
[384864489,1757599842803,-2560.92352819,0.00027287,2]
[384864491,1757599842813,-92.20414989,0.00027293,2]
[384864616,1757599845543,-182.37705621,0.00027293,2]
[384864617,1757599845553,-217.62294379,0.00027293,2]
[384864618,1757599845568,-282.37705621,0.00027293,2]
[384864619,1757599845579,-500.0,0.00027293,2]
[384864620,1757599845588,-150.0,0.00027293,2]
[384864621,1757599845598,-150.0,0.00027293,2]
[384864622,1757599845607,-500.0,0.00027293,2]
[384864623,1757599845616,-500.0,0.00027293,2]
[384864624,1757599845626,-383.47566478,0.00027293,2]
[384864625,1757599845646,-116.52433522,0.00027293,2]
[384864626,1757599845656,-500.0,0.00027293,2]
[384864627,1757599845665,-500.0,0.00027293,2]
[384864628,1757599845674,-212.65363784,0.00027293,2]
[384864629,1757599845683,-327.6172476,0.00027297,2]
[384864630,1757599845693,-560.27670782,0.000273,2]
[384864631,1757599845704,-439.72329218,0.000273,2]
[384864632,1757599845713,-6509.89003134,0.00027323,2]
[384864633,1757599845745,-5907.68940726,0.00027323,2]
[384864634,1757599845756,-1980.0,0.00027324,2]
[384864635,1757599845767,-6725.23561629,0.00027333,2]
[384864636,1757599845778,-12417.5794386,0.00027371,2]
[384864637,1757599845788,-512.61750263,0.00027373,2]
[384864638,1757599845797,-500.0,0.00027373,2]
[384864639,1757599845807,-500.0,0.00027373,2]
[384864640,1757599845816,-283.32902684,0.00027373,2]
[384864641,1757599845827,-500.74716026,0.00027373,2]
[384864642,1757599845837,-503.21473562,0.00027373,2]
[384864643,1757599845846,-500.0,0.00027373,2]
[384864644,1757599845856,-150.0,0.00027373,2]
[384864645,1757599845866,-500.0,0.00027373,2]
[384864646,1757599845876,-218.11503364,0.00027373,2]
[384864647,1757599845885,-150.0,0.00027373,2]
[384864648,1757599845894,-500.0,0.00027373,2]
[384864649,1757599845904,-500.0,0.00027373,2]
[384864650,1757599845913,-150.0,0.00027373,2]
[384864651,1757599845923,-500.0,0.00027373,2]
[384864652,1757599845932,-500.0,0.00027373,2]
[384864653,1757599845942,-251.76681458,0.00027373,2]
[384864654,1757599845951,-500.0,0.00027373,2]
[384864655,1757599845960,-500.0,0.00027373,2]
[384864656,1757599845970,-150.0,0.00027373,2]
[384864657,1757599845980,-150.0,0.00027373,2]
[384864658,1757599845989,-150.0,0.00027373,2]
[384864659,1757599845998,-3342.0,0.00027373,2]
[384864660,1757599846008,-500.0,0.00027373,2]
[384864661,1757599846017,-500.0,0.00027373,2]
[384864662,1757599846027,-500.0,0.00027373,2]
[384864663,1757599846036,-500.0,0.00027373,2]
[384864664,1757599846045,-150.0,0.00027373,2]
[384864665,1757599846054,-150.0,0.00027373,2]
[384864666,1757599846063,-150.0,0.00027373,2]
[384864667,1757599846075,-150.0,0.00027373,2]
[384864668,1757599846084,-151.0,0.00027374,7]
[384864669,1757599846094,-262.25314469,0.00027376,2]
[384864670,1757599846104,-49670.3177543,0.00027377,2]
[384864671,1757599846113,-500.0,0.00027377,5]
[384864672,1757599846122,-186263.691579,0.00027377,2]
[384864673,1757599846132,-97841.1806651,0.00027377,2]
[384864674,1757599846142,-673.76,0.0002738,2]
[384864675,1757599846152,-159.4617441,0.00027381,2]
[384864676,1757599846162,-5023.3915704,0.00027381,2]
[384864677,1757599846171,-1825.0575406,0.00027381,2]
[384864678,1757599846181,-1447.0,0.00027381,2]
[384864679,1757599846190,-758.0,0.00027387,2]
[384864680,1757599846200,-5012.43295525,0.00027387,2]
[384864681,1757599846210,-101504.94429938,0.00027387,4]
[384864682,1757599846219,-279978.55827346,0.00027387,2]
[384864684,1757599846229,-367.8950135,0.00027387,2]
[384864686,1757599846239,-151.74281222,0.00027387,2]
[384864688,1757599846248,-151.0,0.00027387,2]
[384864690,1757599846258,-150.0,0.00027387,2]
[384864720,1757599846544,-150.0,0.00027387,2]
[384864722,1757599846555,-150.0,0.00027387,2]
[384864724,1757599846565,-150.0,0.00027387,2]
[384864726,1757599846577,-150.0,0.00027387,2]
[384864728,1757599846587,-500.0,0.00027387,2]
[384864730,1757599846596,-500.0,0.00027387,2]
[384864732,1757599846605,-500.0,0.00027387,2]
[384864734,1757599846615,-249.1924392,0.00027387,2]
[384864736,1757599846624,-150.0,0.00027387,2]
[384864738,1757599846634,-150.0,0.00027387,2]
[384864741,1757599846644,-150.0,0.00027387,2]
[384864743,1757599846655,-150.0,0.00027387,2]
[384864745,1757599846664,-150.0,0.00027387,2]
[384864747,1757599846673,-200.0,0.00027387,2]
[384864749,1757599846683,-152.0,0.00027387,3]
[384864751,1757599846692,-158.13282725,0.00027387,3]
[384864753,1757599846702,-323.93464999,0.00027387,3]
[384864755,1757599846711,-1089.33790272,0.00027393,2]
[384864757,1757599846719,-507.84316422,0.00027396,2]
[384864759,1757599846728,-500.0,0.00027396,2]
[384864761,1757599846737,-216.135,0.00027396,2]